fUST/lending_fUST_20251029
["ID","MTS","AMOUNT","RATE_DAILY","PERIOD"]
[392593511,1761714650807,-1500.0,0.0002241,2]
[392593512,1761714650818,-1505.41174685,0.0002241,2]
[392593513,1761714650830,-1127.28035488,0.0002241,2]
[392593514,1761714650841,-1500.0,0.0002241,2]
[392593515,1761714650852,-1500.0,0.0002241,2]
[392593516,1761714650863,-857.29408391,0.0002241,2]
[392593517,1761714650874,-720.0,0.00022428,20]
[392593518,1761714650886,-477.0,0.00022449,2]
[392593519,1761714650898,-4534.17277844,0.00022465,2]
[392593520,1761714650910,-1000.0,0.00022465,2]
[392593521,1761714650922,-243.77642142,0.00022465,2]
[392593522,1761714650934,-500.0,0.00022465,2]
[392593523,1761714650950,-449.70445583,0.00022465,2]
[392593524,1761714650961,-298.71981114,0.00022465,2]
[392593525,1761714650972,-500.0,0.00022465,2]
[392593526,1761714650985,-500.0,0.00022465,2]
[392593527,1761714650996,-340.07113545,0.00022465,2]
[392593528,1761714651006,-500.0,0.00022465,2]
[392593529,1761714651017,-797.94,0.00022465,2]
[392593530,1761714651193,-288.84341169,0.00022465,2]
[392593531,1761714651210,-183.14250385,0.00022465,2]
[392593532,1761714651220,-500.0,0.00022465,2]
[392593533,1761714651230,-500.0,0.00022465,2]
[392593534,1761714651239,-500.0,0.00022465,2]
[392593535,1761714651248,-500.0,0.00022465,2]
[392593536,1761714651258,-159.68764483,0.00022465,2]
[392593537,1761714651267,-500.0,0.00022465,2]
[392593538,1761714651276,-500.0,0.00022465,2]
[392593539,1761714651285,-244.02163684,0.00022465,2]
[392593540,1761714651294,-500.0,0.00022465,2]
[392593541,1761714651303,-500.0,0.00022465,2]
[392593542,1761714651312,-500.0,0.00022465,2]
[392593543,1761714651322,-500.0,0.00022465,2]
[392593544,1761714651331,-313.62732355,0.00022465,2]
[392593545,1761714651340,-500.0,0.00022465,2]
[392593546,1761714651350,-500.0,0.00022465,2]
[392593547,1761714651359,-500.0,0.00022465,2]
[392593548,1761714651368,-500.0,0.00022465,2]
[392593549,1761714651378,-500.0,0.00022465,2]
[392593550,1761714651390,-500.0,0.00022465,2]
[392593551,1761714651400,-500.0,0.00022465,2]
[392593552,1761714651409,-500.0,0.00022465,2]
[392593553,1761714651419,-500.0,0.00022465,2]
[392593554,1761714651428,-500.0,0.00022465,2]
[392593555,1761714651437,-500.0,0.00022465,2]
[392593556,1761714651447,-562.30601326,0.00022465,2]
[392593557,1761714651456,-642.68284227,0.00022465,2]
[392593558,1761714651466,-500.0,0.00022465,2]
[392593559,1761714651475,-500.0,0.00022465,2]
[392593560,1761714651484,-273.23761829,0.00022465,2]
[392593561,1761714651493,-689.57,0.00022465,2]
[392593562,1761714651502,-500.0,0.00022465,2]
[392593563,1761714651512,-500.0,0.00022465,2]
[392593564,1761714651521,-500.0,0.00022465,2]
[392593565,1761714651530,-500.0,0.00022465,2]
[392593566,1761714651539,-503.95106774,0.00022465,2]
[392593567,1761714651549,-500.0,0.00022465,2]
[392593568,1761714651558,-500.0,0.00022465,2]
[392593569,1761714651567,-493.94879018,0.00022465,2]
[392593570,1761714651577,-500.0,0.00022465,2]
[392593571,1761714651586,-515.96412008,0.00022465,2]
[392593572,1761714651596,-500.0,0.00022465,2]
[392593573,1761714651605,-500.0,0.00022465,2]
[392593574,1761714651614,-500.0,0.00022465,2]
[392593575,1761714651623,-500.0,0.00022465,2]
[392593576,1761714651633,-513.77,0.00022465,2]
[392593577,1761714651643,-525.33026569,0.00022465,2]
[392593578,1761714651652,-1253.65,0.00022465,2]
[392593579,1761714651662,-500.0,0.00022465,2]
[392593580,1761714651671,-500.0,0.00022465,2]
[392593581,1761714651681,-500.0,0.00022465,2]
[392593582,1761714651690,-448.50221696,0.00022465,2]
[392593583,1761714651699,-500.0,0.00022465,2]
[392593584,1761714651708,-500.0,0.00022465,2]
[392593585,1761714651718,-500.0,0.00022465,2]
[392593586,1761714651727,-500.0,0.00022465,2]
[392593587,1761714651736,-506.26063951,0.00022465,2]
[392593588,1761714651745,-527.82,0.00022465,2]
[392593589,1761714651755,-500.0,0.00022465,2]
[392593590,1761714651768,-500.0,0.00022465,2]
[392593591,1761714651778,-500.0,0.00022465,2]
[392593592,1761714651787,-500.0,0.00022465,2]
[392593593,1761714651797,-505.41434604,0.00022465,2]
[392593594,1761714651807,-500.0,0.00022465,2]
[392593595,1761714651816,-500.0,0.00022465,2]
[392593596,1761714651826,-500.0,0.00022465,2]
[392593597,1761714651836,-500.0,0.00022465,2]
[392593598,1761714651845,-500.0,0.00022465,2]
[392593599,1761714651855,-503.59571413,0.00022465,2]
[392593600,1761714651864,-500.0,0.00022465,2]
[392593601,1761714651874,-500.0,0.00022465,2]
[392593602,1761714651883,-500.0,0.00022465,2]
[392593603,1761714651892,-500.0,0.00022465,2]
[392593604,1761714651901,-500.0,0.00022465,2]
[392593605,1761714651911,-500.0,0.00022465,2]
[392593606,1761714651920,-500.0,0.00022465,2]
[392593607,1761714651931,-500.0,0.00022465,2]
[392593608,1761714651945,-500.0,0.00022465,2]
[392593609,1761714651954,-593.22,0.00022465,2]
[392593610,1761714651964,-500.0,0.00022465,2]
[392593611,1761714651973,-500.0,0.00022465,2]
[392593612,1761714651983,-500.0,0.00022465,2]
[392593613,1761714651995,-500.0,0.00022465,2]
[392593614,1761714652005,-500.0,0.00022465,2]
[392593615,1761714652017,-500.0,0.00022465,2]
[392593616,1761714652027,-516.9905188,0.00022465,2]
[392593617,1761714652035,-500.0,0.00022465,2]
[392593618,1761714652045,-500.0,0.00022465,2]
[392593619,1761714652054,-500.0,0.00022465,2]
[392593620,1761714652063,-500.0,0.00022465,2]
[392593621,1761714652072,-500.0,0.00022465,2]
[392593622,1761714652082,-500.0,0.00022465,2]
[392593623,1761714652091,-500.0,0.00022465,2]
[392593624,1761714652100,-500.0,0.00022465,2]
[392593625,1761714652109,-500.0,0.00022465,2]
[392593626,1761714652118,-500.0,0.00022465,2]
[392593627,1761714652127,-500.0,0.00022465,2]
[392593628,1761714652136,-500.0,0.00022465,2]
[392593629,1761714652145,-500.0,0.00022465,2]
[392593630,1761714652155,-500.0,0.00022465,2]
[392593631,1761714652163,-500.0,0.00022465,2]
[392593632,1761714652173,-500.0,0.00022465,2]
[392593633,1761714652182,-500.0,0.00022465,2]
[392593634,1761714652191,-475.22581636,0.00022465,2]
[392593635,1761714652201,-500.0,0.00022465,2]
[392593636,1761714652210,-500.0,0.00022465,2]
[392593637,1761714652219,-500.0,0.00022465,2]
[392593638,1761714652228,-500.0,0.00022465,2]
[392593639,1761714652238,-661.23,0.00022465,2]
[392593640,1761714652247,-1410.08,0.00022465,2]
[392593641,1761714652256,-500.0,0.00022465,2]
[392593642,1761714652265,-500.0,0.00022465,2]
[392593643,1761714652275,-591.17290902,0.00022465,2]
[392593644,1761714652285,-1010.73,0.00022465,2]
[392593645,1761714652294,-500.0,0.00022465,2]
[392593646,1761714652303,-5571.91,0.00022465,2]
[392593647,1761714652312,-504.11610019,0.00022465,2]
[392593648,1761714652321,-500.0,0.00022465,2]
[392593649,1761714652331,-500.0,0.00022465,2]
[392593650,1761714652340,-500.0,0.00022465,2]
[392593651,1761714652350,-251.7939319,0.00022465,2]
[392593652,1761714652359,-207.32392814,0.00022466,2]
[392593653,1761714652368,-9005.64049947,0.000225,2]
[392593654,1761714652378,-477.0,0.00022508,2]
[392593655,1761714652390,-166.80449091,0.00022521,2]
[392593656,1761714652399,-477.0,0.00022535,2]
[392593657,1761714652409,-477.0,0.00022544,2]
[392593658,1761714652419,-207.32392814,0.00022548,2]
[392593659,1761714652429,-500.0,0.00022566,2]
[392593660,1761714652439,-500.0,0.00022566,2]
[392593661,1761714652449,-500.0,0.00022566,2]
[392593662,1761714652458,-500.0,0.00022566,2]
[392593663,1761714652467,-500.0,0.00022566,2]
[392593664,1761714652476,-500.86893256,0.00022566,2]
[392593665,1761714652486,-500.92918789,0.00022566,2]
[392593666,1761714652496,-151.0,0.000226,8]
[392593667,1761714652505,-5000.0,0.00022608,2]
[392593668,1761714652514,-1019.98642156,0.00022622,2]
[392593669,1761714652523,-477.0,0.00022655,2]
[392593670,1761714652532,-207.32392814,0.00022658,2]
[392593671,1761714652542,-523.19346791,0.00022674,2]
[392593672,1761714652551,-163.0,0.00022685,8]
[392593673,1761714652560,-1000.0,0.00022721,2]
[392593674,1761714652569,-477.0,0.00022729,2]
[392593675,1761714652579,-800.0,0.00022739,2]
[392593676,1761714652588,-1000.0,0.00022739,2]
[392593677,1761714652597,-500.0,0.00022739,2]
[392593678,1761714652606,-500.0,0.00022739,2]
[392593679,1761714652616,-500.0,0.00022739,2]
[392593680,1761714652625,-500.0,0.00022739,2]
[392593681,1761714652634,-797.94,0.00022739,2]
[392593682,1761714652643,-500.0,0.00022739,2]
[392593683,1761714652652,-500.0,0.00022739,2]
[392593684,1761714652662,-500.0,0.00022739,2]
[392593685,1761714652675,-625.60155902,0.00022739,2]
[392593686,1761714652685,-500.0,0.00022739,2]
[392593687,1761714652694,-500.0,0.00022739,2]
[392593688,1761714652703,-500.0,0.00022739,2]
[392593689,1761714652712,-500.0,0.00022739,2]
[392593690,1761714652721,-500.0,0.00022739,2]
[392593691,1761714652730,-186.94349902,0.00022739,2]
[392593692,1761714652741,-500.0,0.00022739,2]
[392593693,1761714652750,-500.0,0.00022739,2]
[392593694,1761714652759,-500.0,0.00022739,2]
[392593695,1761714652768,-500.0,0.00022739,2]
[392593696,1761714652778,-500.0,0.00022739,2]
[392593697,1761714652787,-500.0,0.00022739,2]
[392593698,1761714652796,-500.0,0.00022739,2]
[392593699,1761714652806,-500.0,0.00022739,2]
[392593700,1761714652815,-618.37157705,0.00022739,2]
[392593701,1761714652824,-500.0,0.00022739,2]
[392593702,1761714652833,-500.0,0.00022739,2]
[392593703,1761714652842,-500.0,0.00022739,2]
[392593704,1761714652851,-500.0,0.00022739,2]
[392593705,1761714652860,-689.57,0.00022739,2]
[392593706,1761714652869,-593.10318189,0.00022739,2]
[392593707,1761714652878,-500.0,0.00022739,2]
[392593708,1761714652889,-500.0,0.00022739,2]
[392593709,1761714652898,-500.0,0.00022739,2]
[392593710,1761714652907,-500.0,0.00022739,2]
[392593711,1761714652916,-500.0,0.00022739,2]
[392593712,1761714652925,-500.0,0.00022739,2]
[392593713,1761714652935,-500.0,0.00022739,2]
[392593714,1761714652950,-500.0,0.00022739,2]
[392593715,1761714652959,-500.0,0.00022739,2]
[392593716,1761714652969,-500.0,0.00022739,2]
[392593717,1761714652979,-513.77,0.00022739,2]
[392593718,1761714652991,-1253.65,0.00022739,2]
[392593719,1761714653001,-500.0,0.00022739,2]
[392593720,1761714653010,-500.0,0.00022739,2]
[392593721,1761714653022,-226.03977175,0.00022739,2]
[392593722,1761714653032,-500.0,0.00022739,2]
[392593723,1761714653042,-500.0,0.00022739,2]
[392593724,1761714653052,-500.0,0.00022739,2]
[392593725,1761714653064,-500.0,0.00022739,2]
[392593726,1761714653073,-527.82,0.00022739,2]
[392593727,1761714653083,-500.0,0.00022739,2]
[392593728,1761714653092,-242.30859084,0.00022739,2]
[392593729,1761714653102,-500.0,0.00022739,2]
[392593730,1761714653111,-500.0,0.00022739,2]
[392593731,1761714653121,-500.0,0.00022739,2]
[392593732,1761714653130,-500.0,0.00022739,2]
[392593733,1761714653140,-500.0,0.00022739,2]
[392593734,1761714653149,-500.0,0.00022739,2]
[392593735,1761714653158,-500.0,0.00022739,2]
[392593736,1761714653167,-500.0,0.00022739,2]
[392593737,1761714653176,-500.0,0.00022739,2]
[392593738,1761714653186,-500.0,0.00022739,2]
[392593739,1761714653195,-500.0,0.00022739,2]
[392593740,1761714653205,-500.0,0.00022739,2]
[392593741,1761714653214,-500.0,0.00022739,2]
[392593742,1761714653223,-500.0,0.00022739,2]
[392593743,1761714653233,-500.0,0.00022739,2]
[392593744,1761714653242,-500.0,0.00022739,2]
[392593745,1761714653252,-593.22,0.00022739,2]
[392593746,1761714653261,-500.0,0.00022739,2]
[392593747,1761714653271,-500.0,0.00022739,2]
[392593748,1761714653281,-500.0,0.00022739,2]
[392593749,1761714653290,-500.0,0.00022739,2]
[392593750,1761714653299,-500.0,0.00022739,2]
[392593751,1761714653308,-500.0,0.00022739,2]
[392593752,1761714653318,-500.0,0.00022739,2]
[392593753,1761714653327,-274.29737038,0.00022739,2]
[392593754,1761714653336,-500.0,0.00022739,2]
[392593755,1761714653346,-500.0,0.00022739,2]
[392593756,1761714653355,-500.0,0.00022739,2]
[392593757,1761714653366,-648.52245516,0.00022739,2]
[392593758,1761714653375,-500.0,0.00022739,2]
[392593759,1761714653385,-500.0,0.00022739,2]
[392593760,1761714653394,-218.16952299,0.00022739,2]
[392593761,1761714653404,-500.0,0.00022739,2]
[392593762,1761714653413,-500.0,0.00022739,2]
[392593763,1761714653423,-500.0,0.00022739,2]
[392593764,1761714653432,-500.0,0.00022739,2]
[392593765,1761714653442,-500.0,0.00022739,2]
[392593766,1761714653451,-210.36014753,0.00022739,2]
[392593767,1761714653460,-500.0,0.00022739,2]
[392593768,1761714653470,-500.0,0.00022739,2]
[392593769,1761714653479,-500.0,0.00022739,2]
[392593770,1761714653489,-500.0,0.00022739,2]
[392593771,1761714653499,-500.0,0.00022739,2]
[392593772,1761714653508,-500.0,0.00022739,2]
[392593773,1761714653517,-661.23,0.00022739,2]
[392593774,1761714653527,-1410.08,0.00022739,2]
[392593775,1761714653536,-500.0,0.00022739,2]
[392593776,1761714653546,-500.0,0.00022739,2]
[392593777,1761714653556,-1010.73,0.00022739,2]
[392593778,1761714653565,-500.0,0.00022739,2]
[392593779,1761714653574,-5571.91,0.00022739,2]
[392593780,1761714653583,-500.0,0.00022739,2]
[392593781,1761714653592,-500.0,0.00022739,2]
[392593782,1761714653602,-500.0,0.00022739,2]
[392593783,1761714653611,-477.0,0.00022758,2]
[392593784,1761714653621,-207.32392814,0.00022767,2]
[392593785,1761714653630,-168.0,0.000228,2]
[392593786,1761714653640,-166.80449091,0.00022822,2]
[392593787,1761714653649,-500.0,0.00022824,2]
[392593788,1761714653659,-500.0,0.00022824,2]
[392593789,1761714653668,-500.0,0.00022824,2]
[392593790,1761714653677,-500.0,0.00022824,2]
[392593791,1761714653688,-500.0,0.00022824,2]
[392593792,1761714653698,-500.0,0.00022824,2]
[392593793,1761714653707,-500.0,0.00022824,2]
[392593794,1761714653716,-500.0,0.00022824,2]
[392593795,1761714653726,-158.69886469,0.00022824,2]
[392593796,1761714653735,-405.54095576,0.00022824,2]
[392593797,1761714654082,-500.0,0.00021917,2]
[392593798,1761714654092,-412.27640346,0.00021917,2]
[392593799,1761714654102,-500.0,0.00021917,2]
[392593800,1761714654112,-500.0,0.00021917,2]
[392593801,1761714654121,-500.0,0.00021917,2]
[392593802,1761714654131,-251.61,0.00022191,2]
[392593803,1761714654140,-59.79986003,0.00022824,2]
[392593804,1761714654150,-500.0,0.00022824,2]
[392593805,1761714654160,-259.62771919,0.00022824,2]
[392593806,1761714654170,-158.82308277,0.00022824,2]
[392593807,1761714654181,-500.0,0.00022824,2]
[392593808,1761714654192,-500.0,0.00022824,2]
[392593809,1761714654202,-158.71755723,0.00022824,2]
[392593810,1761714654211,-559.29005849,0.00022824,2]
[392593811,1761714654221,-500.0,0.00022824,2]
[392593812,1761714654230,-500.0,0.00022824,2]
[392593813,1761714654240,-304.70394978,0.00022824,2]
[392593814,1761714654249,-164.70219087,0.00022824,2]
[392593815,1761714654258,-500.0,0.00022824,2]
[392593816,1761714654268,-520.3903033,0.00022824,2]
[392593817,1761714654277,-500.0,0.00022824,2]
[392593818,1761714654286,-500.0,0.00022824,2]
[392593819,1761714654295,-500.0,0.00022824,2]
[392593820,1761714654304,-500.0,0.00022824,2]
[392593821,1761714654313,-500.0,0.00022824,2]
[392593822,1761714654323,-500.0,0.00022824,2]
[392593823,1761714654332,-529.55288218,0.00022824,2]
[392593824,1761714654473,-500.0,0.00022824,2]
[392593825,1761714654484,-171.73933467,0.00022824,2]
[392593826,1761714654494,-500.17149154,0.00022824,2]
[392593827,1761714654504,-500.0,0.00022824,2]
[392593828,1761714654513,-500.0,0.00022824,2]
[392593829,1761714654522,-500.0,0.00022824,2]
[392593830,1761714654531,-353.38231235,0.00022824,2]
[392593831,1761714654541,-500.0,0.00022824,2]
[392593832,1761714654550,-512.90319331,0.00022824,2]
[392593833,1761714654560,-500.0,0.00022824,2]
[392593834,1761714654569,-502.88847147,0.00022855,2]
[392593835,1761714654578,-460.0,0.00022869,2]
[392593836,1761714654587,-207.32392814,0.00022877,2]
[392593837,1761714654597,-151.0,0.000229,5]
[392593838,1761714654607,-2000.0,0.00022958,2]
[392593839,1761714654616,-513.86406498,0.00022958,2]
[392593840,1761714654627,-2000.0,0.00022958,2]
[392593841,1761714654637,-2000.0,0.00022958,2]
[392593842,1761714654647,-2010.23022314,0.00022958,2]
[392593843,1761714654656,-1882.29887507,0.00022958,2]
[392593844,1761714654665,-765.5249233,0.00022964,2]
[392593845,1761714654675,-500.0,0.00022973,2]
[392593846,1761714654685,-160.01045645,0.00022973,2]
[392593847,1761714654694,-500.0,0.00022973,2]
[392593848,1761714654704,-500.0,0.00022973,2]
[392593849,1761714654713,-500.0,0.00022973,2]
[392593850,1761714654723,-236.47313381,0.00022973,2]
[392593851,1761714654732,-500.0,0.00022973,2]
[392593852,1761714654742,-219.4298801,0.00022973,2]
[392593853,1761714654751,-500.0,0.00022973,2]
[392593854,1761714654765,-500.0,0.00022973,2]
[392593855,1761714654775,-160.3711982,0.00022973,2]
[392593856,1761714654785,-160.36945364,0.00022973,2]
[392593857,1761714654794,-158.31948725,0.00022973,2]
[392593858,1761714654803,-158.58826827,0.00022973,2]
[392593859,1761714654813,-158.29134998,0.00022973,2]
[392593860,1761714654823,-500.0,0.00022973,2]
[392593861,1761714654832,-158.30464478,0.00022973,2]
[392593862,1761714654842,-500.0,0.00022973,2]
[392593863,1761714654851,-500.0,0.00022973,2]
[392593864,1761714654861,-286.21745678,0.00022973,2]
[392593865,1761714654871,-500.0,0.00022973,2]
[392593866,1761714654880,-207.32392814,0.00022986,2]
[392593867,1761714654890,-26688.71980714,0.00023,10]
[392593879,1761714873654,4000.0,0.00030137,120]
[392593880,1761715046025,2124.828748,0.00016521,2]
[392593882,1761715315035,205.45953047,0.0003,120]
[392593885,1761715515365,7875.181252,0.00017429,2]
[392593886,1761715515393,1426.818748,0.00017429,2]
[392593888,1761715554093,-150.0,0.00019628,2]
[392593889,1761715554113,-74.20341149,0.00019681,2]
[392593890,1761715654142,-190.864708,0.00019272,2]
[392593891,1761715654164,-100.15403373,0.00019681,2]
[392593892,1761715654185,-160.0,0.00019751,2]
[392593893,1761715654206,-2.22883609,0.00019781,2]
[392593899,1761715710683,8573.191252,0.00017,2]
[392593900,1761715710705,10000.01,0.00017,2]
[392593901,1761715710728,1475.78281981,0.00017,2]
[392593902,1761715751117,-300.0,0.00017998,2]
[392593903,1761715751137,-500.0,0.00017999,2]
[392593904,1761715751157,-500.0,0.00017999,2]
[392593905,1761715751176,-500.0,0.00017999,2]
[392593906,1761715751196,-500.0,0.00017999,2]
[392593907,1761715751215,-500.0,0.00017999,2]
[392593908,1761715751236,-500.0,0.00017999,2]
[392593909,1761715751256,-500.0,0.00017999,2]
[392593910,1761715751278,-500.0,0.00017999,2]
[392593911,1761715751298,-163.12723824,0.00017999,2]
[392593912,1761715751318,-500.0,0.00017999,2]
[392593913,1761715751339,-393.07382795,0.00017999,2]
[392593914,1761715751358,-500.0,0.00017999,2]
[392593915,1761715751376,-383.31040419,0.00017999,2]
[392593916,1761715751396,-500.0,0.00017999,2]
[392593917,1761715751415,-500.0,0.00017999,2]
[392593918,1761715751435,-500.0,0.00017999,2]
[392593919,1761715751455,-385.48218995,0.00017999,2]
[392593920,1761715751473,-500.0,0.00017999,2]
[392593921,1761715751494,-500.0,0.00017999,2]
[392593922,1761715751514,-500.0,0.00017999,2]
[392593923,1761715751535,-500.0,0.00017999,2]
[392593924,1761715751555,-500.0,0.00017999,2]
[392593925,1761715751575,-500.0,0.00017999,2]
[392593926,1761715751595,-500.0,0.00017999,2]
[392593927,1761715751616,-500.0,0.00017999,2]
[392593928,1761715751637,-500.0,0.00017999,2]
[392593929,1761715751814,-500.0,0.00017999,2]
[392593930,1761715751839,-500.0,0.00017999,2]
[392593931,1761715751861,-500.0,0.00017999,2]
[392593932,1761715751881,-500.0,0.00017999,2]
[392593933,1761715751901,-500.0,0.00017999,2]
[392593934,1761715751921,-185.0,0.00017999,2]
[392593935,1761715751941,-500.0,0.00017999,2]
[392593936,1761715751960,-500.0,0.00017999,2]
[392593937,1761715751980,-500.0,0.00017999,2]
[392593938,1761715751999,-46570.98427109,0.00018,2]
[392593939,1761715752025,-5135.40627826,0.00018,2]
[392593940,1761715752044,-22693.70228115,0.00018,2]
[392593941,1761715752070,-150.0,0.0001818,2]
[392593942,1761715752092,-300.0,0.00018359,2]
[392593943,1761715752112,-300.0,0.00018359,2]
[392593944,1761715752133,-300.0,0.00018359,2]
[392593945,1761715752154,-300.0,0.00018359,2]
[392593946,1761715752180,-300.0,0.00018359,2]
[392593947,1761715752202,-300.0,0.00018359,2]
[392593948,1761715752223,-300.0,0.00018359,2]
[392593949,1761715752246,-300.0,0.00018359,2]
[392593950,1761715752268,-300.0,0.00018359,2]
[392593951,1761715752290,-300.0,0.00018359,2]
[392593952,1761715752310,-300.0,0.00018359,2]
[392593953,1761715752330,-300.0,0.00018359,2]
[392593954,1761715752350,-300.0,0.00018359,2]
[392593955,1761715752371,-300.0,0.00018359,2]
[392593956,1761715752391,-300.0,0.00018359,2]
[392593957,1761715752411,-600.0,0.00018359,2]
[392593958,1761715803090,14000.0,0.00017477,2]
[392593961,1761715829527,204.8719914,0.0001802,2]
[392593995,1761715832201,-200.0,0.00019781,2]
[392593997,1761715832211,-252.85204919,0.00019781,2]
[392593999,1761715832221,-205.79867159,0.00019781,2]
[392594001,1761715832231,-300.0,0.00019999,2]
[392594002,1761715832240,-300.0,0.00019999,2]
[392594003,1761715832249,-300.0,0.00019999,2]
[392594005,1761715832259,-300.0,0.00019999,2]
[392594006,1761715832268,-1200.0,0.00019999,2]
[392594007,1761715832277,-2313.74736264,0.0002,2]
[392594008,1761715832286,-2303.67195771,0.0002,2]
[392594009,1761715832295,-160.0,0.0002,2]
[392594010,1761715832304,-177.0,0.0002018,2]
[392594011,1761715832314,-221.86220094,0.00020272,2]
[392594012,1761715832323,-34322.39631285,0.00020272,2]
[392594013,1761715832334,-651.30128868,0.00020272,2]
[392594014,1761715832742,-124.84425458,0.00020272,2]
[392594021,1761715838045,-488.11931422,0.00020271,2]
[392594022,1761715838056,-264.81226713,0.00020271,2]
[392594023,1761715838065,-465.0,0.00020271,2]
[392594024,1761715838074,-542.83135444,0.00020271,2]
[392594025,1761715838083,-14901.45814389,0.00020272,2]
[392594026,1761715838092,-300.0,0.00020399,2]
[392594027,1761715838101,-300.0,0.00020399,2]
[392594028,1761715838110,-300.0,0.00020399,2]
[392594029,1761715838119,-300.0,0.00020399,2]
[392594030,1761715838128,-300.0,0.00020399,2]
[392594031,1761715838137,-300.0,0.00020399,2]
[392594032,1761715838147,-300.0,0.00020399,2]
[392594033,1761715838156,-300.0,0.00020399,2]
[392594034,1761715838166,-300.0,0.00020399,2]
[392594035,1761715838175,-300.0,0.00020399,2]
[392594036,1761715838185,-300.0,0.00020399,2]
[392594037,1761715838195,-300.0,0.00020399,2]
[392594038,1761715838204,-300.0,0.00020399,2]
[392594039,1761715838214,-300.0,0.00020399,2]
[392594040,1761715838223,-300.0,0.00020399,2]
[392594041,1761715838233,-600.0,0.00020676,2]
[392594042,1761715838242,-1000.55341842,0.00021,2]
[392594043,1761715838252,-1168.17703326,0.00021106,2]
[392594044,1761715838261,-984.0,0.00021334,2]
[392594045,1761715838270,-633.0,0.00021334,2]
[392594046,1761715838280,-600.0,0.00021356,2]
[392594047,1761715838289,-287.693,0.00021717,2]
[392594048,1761715838298,-168.0,0.00021744,2]
[392594049,1761715838307,-420.0,0.00021777,2]
[392594050,1761715838316,-1005.07,0.00021789,2]
[392594051,1761715838327,-314.10171877,0.00021817,2]
[392594052,1761715838336,-1680.0,0.00021881,2]
[392594053,1761715838346,-259.16880805,0.00021896,2]
[392594054,1761715838356,-403.72361849,0.00021907,10]
[392594055,1761715838365,-2985.31,0.00021907,10]
[392594056,1761715838375,-5692.79,0.00021907,10]
[392594057,1761715838385,-155.30354066,0.00021916,2]
[392594058,1761715838394,-500.0,0.00021917,2]
[392594059,1761715838403,-500.0,0.00021917,2]
[392594060,1761715838412,-500.0,0.00021917,2]
[392594061,1761715838421,-500.0,0.00021917,2]
[392594062,1761715838431,-509.83,0.00021917,2]
[392594063,1761715838440,-500.0,0.00021917,2]
[392594064,1761715838449,-500.0,0.00021917,2]
[392594065,1761715838458,-500.0,0.00021917,2]
[392594066,1761715838467,-500.0,0.00021917,2]
[392594067,1761715838477,-500.0,0.00021917,2]
[392594068,1761715838486,-500.0,0.00021917,2]
[392594069,1761715838495,-500.0,0.00021917,2]
[392594070,1761715838504,-500.0,0.00021917,2]
[392594071,1761715838513,-500.0,0.00021917,2]
[392594072,1761715838523,-500.0,0.00021917,2]
[392594073,1761715838532,-500.0,0.00021917,2]
[392594074,1761715838541,-500.0,0.00021917,2]
[392594075,1761715838550,-500.0,0.00021917,2]